[Event "*** Titled Tuesday Blitz"]
[Site "Chess.com"]
[Date "2021.04.20"]
[Round "11"]
[White "Indianlad"]
[Black "Arystanner"]
[Result "0-1"]
[WhiteElo "2909"]
[BlackElo "2825"]
[TimeControl "180+1"]
[EndTime "12:06:37 PDT"]
[Termination "Arystanner won by resignation"]

1. c4 {[%clk 0:03:00.9]} 1... e6 {[%clk 0:02:59.2]} 2. g3 {[%clk 0:03:00.4]}
2... d5 {[%clk 0:02:59.8]} 3. Bg2 {[%clk 0:03:00.9]} 3... dxc4 {[%clk
0:03:00.1]} 4. Qa4+ {[%clk 0:02:59.7]} 4... Nd7 {[%clk 0:03:00.5]} 5. Qxc4
{[%clk 0:02:59.7]} 5... a6 {[%clk 0:03:00.4]} 6. Qc2 {[%clk 0:02:58.8]} 6... c5
{[%clk 0:02:59]} 7. Nf3 {[%clk 0:02:59]} 7... Ra7 {[%clk 0:02:57.9]} 8. O-O
{[%clk 0:02:57.2]} 8... b5 {[%clk 0:02:58.2]} 9. d4 {[%clk 0:02:57.9]} 9... Bb7
{[%clk 0:02:57.3]} 10. Rd1 {[%clk 0:02:58.5]} 10... Ngf6 {[%clk 0:02:56.5]} 11.
dxc5 {[%clk 0:02:54.5]} 11... Bxc5 {[%clk 0:02:52.7]} 12. Qxc5 {[%clk
0:02:44.9]} 12... Nxc5 {[%clk 0:02:50.5]} 13. Rxd8+ {[%clk 0:02:45.8]} 13...
Kxd8 {[%clk 0:02:51.4]} 14. Be3 {[%clk 0:02:46.1]} 14... Bxf3 {[%clk 0:02:48.8]}
15. Bxc5 {[%clk 0:02:44.8]} 15... Rc7 {[%clk 0:02:38.6]} 16. Bb6 {[%clk
0:02:43.4]} 16... Bxg2 {[%clk 0:02:38.5]} 17. Kxg2 {[%clk 0:02:43.3]} 17... Nd5
{[%clk 0:02:33.2]} 18. Bxc7+ {[%clk 0:02:41.7]} 18... Kxc7 {[%clk 0:02:34.1]}
19. Nd2 {[%clk 0:02:41.7]} 19... Rd8 {[%clk 0:02:31]} 20. Rc1+ {[%clk
0:02:39.2]} 20... Kb6 {[%clk 0:02:28.9]} 21. Ne4 {[%clk 0:02:35.5]} 21... h6
{[%clk 0:02:07.1]} 22. a3 {[%clk 0:02:35.3]} 22... a5 {[%clk 0:02:06.1]} 23. h4
{[%clk 0:02:33.9]} 23... Nf6 {[%clk 0:01:46.6]} 24. Nxf6 {[%clk 0:02:14.6]}
24... gxf6 {[%clk 0:01:46.9]} 25. Rc2 {[%clk 0:02:15.1]} 25... a4 {[%clk
0:01:42.5]} 26. Kf3 {[%clk 0:02:14.4]} 26... Rd4 {[%clk 0:01:37.1]} 27. e3
{[%clk 0:02:13.6]} 27... Rd5 {[%clk 0:01:25.3]} 28. g4 {[%clk 0:02:07.6]} 28...
Rc5 {[%clk 0:01:07.5]} 29. Rd2 {[%clk 0:02:06.7]} 29... Kc7 {[%clk 0:01:07.4]}
30. Kg3 {[%clk 0:02:05.9]} 30... Rc1 {[%clk 0:01:07]} 31. f4 {[%clk 0:02:02.4]}
31... Rg1+ {[%clk 0:01:00.9]} 32. Kf3 {[%clk 0:02:01.8]} 32... Rh1 {[%clk
0:00:59.8]} 33. h5 {[%clk 0:02:00.2]} 33... Rh3+ {[%clk 0:00:46]} 34. Ke4 {[%clk
0:01:30.6]} 34... Rg3 {[%clk 0:00:46]} 35. Rc2+ {[%clk 0:01:31]} 35... Kd6
{[%clk 0:00:40.5]} 36. Rc8 {[%clk 0:01:29.4]} 36... Rxg4 {[%clk 0:00:40.8]} 37.
Rh8 {[%clk 0:01:27.5]} 37... Rg2 {[%clk 0:00:40.6]} 38. Rxh6 {[%clk 0:01:27.7]}
38... f5+ {[%clk 0:00:41.1]} 39. Kf3 {[%clk 0:01:27.2]} 39... Rxb2 {[%clk
0:00:41.8]} 40. Rh8 {[%clk 0:01:26.2]} 40... Ke7 {[%clk 0:00:29.8]} 41. Kg3
{[%clk 0:01:10.1]} 41... Kf6 {[%clk 0:00:29.6]} 42. Rg8 {[%clk 0:01:02.2]} 42...
Rb1 {[%clk 0:00:21.5]} 43. Kg2 {[%clk 0:01:00.1]} 43... Rb2+ {[%clk 0:00:19.5]}
44. Kg3 {[%clk 0:00:53.3]} 44... Rb1 {[%clk 0:00:19.5]} 45. Kh2 {[%clk
0:00:17.9]} 45... Rb2+ {[%clk 0:00:19.7]} 46. Kh3 {[%clk 0:00:17.6]} 46... Rb1
{[%clk 0:00:20]} 47. Rb8 {[%clk 0:00:14]} 47... Rb3 {[%clk 0:00:15.8]} 48. Kh4
{[%clk 0:00:09.2]} 48... Rxa3 {[%clk 0:00:13.8]} 49. Rxb5 {[%clk 0:00:07.4]}
49... Ra1 {[%clk 0:00:14.4]} 50. Rb8 {[%clk 0:00:06.2]} 50... a3 {[%clk
0:00:13.8]} 51. Ra8 {[%clk 0:00:05.1]} 51... a2 {[%clk 0:00:13.7]} 52. h6 {[%clk
0:00:06]} 52... Rh1+ {[%clk 0:00:13.9]} 53. Kg3 {[%clk 0:00:06.8]} 53... a1=Q
{[%clk 0:00:14.5]} 0-1

[Event "*** Titled Tuesday Blitz"]
[Site "Chess.com"]
[Date "2021.04.20"]
[Round "11"]
[White "Cambek64"]
[Black "UCantHandleDenker"]
[Result "1-0"]
[WhiteElo "2485"]
[BlackElo "2579"]
[TimeControl "180+1"]
[EndTime "12:06:37 PDT"]
[Termination "Cambek64 won on time"]

1. e4 {[%clk 0:02:52.6]} 1... d6 {[%clk 0:03:00.9]} 2. d4 {[%clk 0:02:51.1]}
2... Nf6 {[%clk 0:03:01.3]} 3. Nc3 {[%clk 0:02:51]} 3... e5 {[%clk 0:03:01.8]}
4. dxe5 {[%clk 0:02:49.9]} 4... dxe5 {[%clk 0:03:01.6]} 5. Qxd8+ {[%clk
0:02:50.4]} 5... Kxd8 {[%clk 0:03:02.1]} 6. Bc4 {[%clk 0:02:49.5]} 6... Be6
{[%clk 0:03:01.7]} 7. Bxe6 {[%clk 0:02:49.4]} 7... fxe6 {[%clk 0:03:02.6]} 8. f3
{[%clk 0:02:39]} 8... Bd6 {[%clk 0:03:02.5]} 9. Be3 {[%clk 0:02:38.4]} 9... Ke7
{[%clk 0:03:02.1]} 10. O-O-O {[%clk 0:02:38.3]} 10... Nbd7 {[%clk 0:02:51.2]}
11. Nge2 {[%clk 0:02:38.7]} 11... a6 {[%clk 0:02:49.5]} 12. Kb1 {[%clk
0:02:39.1]} 12... b5 {[%clk 0:02:48.7]} 13. Nc1 {[%clk 0:02:39.2]} 13... c5
{[%clk 0:02:47.2]} 14. N3e2 {[%clk 0:02:35.6]} 14... c4 {[%clk 0:02:45.4]} 15.
Rd2 {[%clk 0:02:35.1]} 15... Bc5 {[%clk 0:02:37.5]} 16. Bxc5+ {[%clk 0:02:33.8]}
16... Nxc5 {[%clk 0:02:38.4]} 17. Rhd1 {[%clk 0:02:32.6]} 17... Rhc8 {[%clk
0:02:33.3]} 18. Rf1 {[%clk 0:02:07.3]} 18... Rc7 {[%clk 0:02:30.8]} 19. Rfd1
{[%clk 0:02:07.5]} 19... Rb8 {[%clk 0:02:30.3]} 20. c3 {[%clk 0:02:02.4]} 20...
a5 {[%clk 0:02:23.8]} 21. Rc2 {[%clk 0:01:56.4]} 21... h6 {[%clk 0:02:16]} 22.
a3 {[%clk 0:01:54.2]} 22... Nfd7 {[%clk 0:02:11.1]} 23. Ng3 {[%clk 0:01:49.7]}
23... Nb6 {[%clk 0:02:07.3]} 24. Nf1 {[%clk 0:01:48.6]} 24... Na6 {[%clk
0:01:51.6]} 25. Ne3 {[%clk 0:01:49]} 25... b4 {[%clk 0:01:48.7]} 26. axb4 {[%clk
0:01:47.3]} 26... axb4 {[%clk 0:01:49.2]} 27. cxb4 {[%clk 0:01:33.8]} 27... Nxb4
{[%clk 0:01:50.1]} 28. Rc3 {[%clk 0:01:33.5]} 28... Na6 {[%clk 0:01:38.7]} 29.
Rd2 {[%clk 0:01:25.4]} 29... Na4 {[%clk 0:01:37.5]} 30. Rxc4 {[%clk 0:01:23.6]}
30... N6c5 {[%clk 0:01:21.5]} 31. Rdc2 {[%clk 0:01:19.6]} 31... Rcb7 {[%clk
0:01:19.4]} 32. Nd1 {[%clk 0:01:14.2]} 32... Rb5 {[%clk 0:01:06.2]} 33. Ne2
{[%clk 0:01:07.2]} 33... Ra8 {[%clk 0:00:52.6]} 34. Ndc3 {[%clk 0:00:47.5]}
34... Nxc3+ {[%clk 0:00:47.7]} 35. Nxc3 {[%clk 0:00:36.3]} 35... Nb3 {[%clk
0:00:46.7]} 36. Ra4 {[%clk 0:00:25.9]} 36... Rxa4 {[%clk 0:00:45.4]} 37. Nxa4
{[%clk 0:00:26.5]} 37... Ra5 {[%clk 0:00:45.8]} 38. Rc3 {[%clk 0:00:23.3]} 38...
Nd2+ {[%clk 0:00:44.1]} 39. Kc2 {[%clk 0:00:22.9]} 39... Nxf3 {[%clk 0:00:35.2]}
40. gxf3 {[%clk 0:00:20.5]} 40... Rxa4 {[%clk 0:00:35.5]} 41. Kb3 {[%clk
0:00:20.1]} 41... Ra7 {[%clk 0:00:34.1]} 42. Kc2 {[%clk 0:00:16.9]} 42... g5
{[%clk 0:00:32.5]} 43. b4 {[%clk 0:00:16.7]} 43... Kd6 {[%clk 0:00:32.2]} 44.
Kb3 {[%clk 0:00:16.8]} 44... h5 {[%clk 0:00:32]} 45. h3 {[%clk 0:00:16.1]} 45...
Ra1 {[%clk 0:00:24.4]} 46. b5 {[%clk 0:00:16.3]} 46... Rb1+ {[%clk 0:00:21]} 47.
Kc4 {[%clk 0:00:16.4]} 47... Rb2 {[%clk 0:00:07.5]} 48. Rb3 {[%clk 0:00:12.1]}
48... Rxb3 {[%clk 0:00:06.7]} 49. Kxb3 {[%clk 0:00:11.5]} 49... Kc5 {[%clk
0:00:06.3]} 50. Ka4 {[%clk 0:00:11.5]} 1-0

[Event "*** Titled Tuesday Blitz"]
[Site "Chess.com"]
[Date "2021.04.20"]
[Round "11"]
[White "rachidhuilda"]
[Black "suneebaker"]
[Result "1-0"]
[WhiteElo "2271"]
[BlackElo "2192"]
[TimeControl "180+1"]
[EndTime "12:06:37 PDT"]
[Termination "rachidhuilda won on time"]

1. d4 {[%clk 0:02:57.4]} 1... e6 {[%clk 0:02:58.6]} 2. Nf3 {[%clk 0:02:55.5]}
2... f5 {[%clk 0:02:58.3]} 3. g3 {[%clk 0:02:50.8]} 3... Nf6 {[%clk 0:02:58.5]}
4. Bg2 {[%clk 0:02:51.2]} 4... Be7 {[%clk 0:02:58.5]} 5. b3 {[%clk 0:02:48.1]}
5... O-O {[%clk 0:02:58.4]} 6. Bb2 {[%clk 0:02:47.5]} 6... d6 {[%clk 0:02:57.6]}
7. Nbd2 {[%clk 0:02:46.9]} 7... Nc6 {[%clk 0:02:55.2]} 8. e3 {[%clk 0:02:35.7]}
8... Qe8 {[%clk 0:02:46.9]} 9. O-O {[%clk 0:02:33.5]} 9... Qh5 {[%clk
0:02:43.5]} 10. c4 {[%clk 0:02:30.2]} 10... g5 {[%clk 0:02:37.9]} 11. d5 {[%clk
0:02:02]} 11... exd5 {[%clk 0:02:27.2]} 12. cxd5 {[%clk 0:02:01.7]} 12... Nb4
{[%clk 0:02:26.3]} 13. Nd4 {[%clk 0:01:32.7]} 13... Qxd1 {[%clk 0:02:08.4]} 14.
Rfxd1 {[%clk 0:01:32.4]} 14... Nbxd5 {[%clk 0:02:05.1]} 15. Nb5 {[%clk
0:01:31.2]} 15... c6 {[%clk 0:01:57.8]} 16. Nd4 {[%clk 0:01:02.5]} 16... Nb4
{[%clk 0:01:35.7]} 17. a3 {[%clk 0:00:52.7]} 17... Nbd5 {[%clk 0:01:30.2]} 18.
b4 {[%clk 0:00:43.6]} 18... Bd7 {[%clk 0:01:29.1]} 19. Rac1 {[%clk 0:00:33.6]}
19... Nb6 {[%clk 0:01:23.4]} 20. e4 {[%clk 0:00:29.8]} 20... Nxe4 {[%clk
0:01:21]} 21. Nxe4 {[%clk 0:00:30.7]} 21... fxe4 {[%clk 0:01:20.9]} 22. Bxe4
{[%clk 0:00:31.6]} 22... d5 {[%clk 0:01:20.6]} 23. Bg2 {[%clk 0:00:31.6]} 23...
Nc4 {[%clk 0:01:17.8]} 24. Rc2 {[%clk 0:00:23]} 24... Nxb2 {[%clk 0:01:10.7]}
25. Rxb2 {[%clk 0:00:23.9]} 25... Bf6 {[%clk 0:01:10.5]} 26. Rc2 {[%clk
0:00:24]} 26... a6 {[%clk 0:01:07.8]} 27. f3 {[%clk 0:00:18.7]} 27... Rae8
{[%clk 0:01:05.8]} 28. Kf2 {[%clk 0:00:18.5]} 28... Re7 {[%clk 0:01:02.3]} 29.
Re2 {[%clk 0:00:17.3]} 29... Rfe8 {[%clk 0:01:01.7]} 30. Rxe7 {[%clk 0:00:16.8]}
30... Rxe7 {[%clk 0:01:01.5]} 31. g4 {[%clk 0:00:16.9]} 31... Kf7 {[%clk
0:00:52.7]} 32. Bf1 {[%clk 0:00:17.1]} 32... a5 {[%clk 0:00:37.4]} 33. Be2
{[%clk 0:00:16.5]} 33... axb4 {[%clk 0:00:36.2]} 34. axb4 {[%clk 0:00:17.4]}
34... Re8 {[%clk 0:00:34.2]} 35. Nf5 {[%clk 0:00:16.7]} 35... Bxf5 {[%clk
0:00:32.5]} 36. gxf5 {[%clk 0:00:17.6]} 36... Re5 {[%clk 0:00:32.3]} 37. b5
{[%clk 0:00:17.7]} 37... Rxf5 {[%clk 0:00:30.8]} 38. bxc6 {[%clk 0:00:16.9]}
38... bxc6 {[%clk 0:00:30.7]} 39. Rc1 {[%clk 0:00:17.5]} 39... c5 {[%clk
0:00:28.3]} 40. Kg3 {[%clk 0:00:15.2]} 40... Bd4 {[%clk 0:00:27.8]} 41. Rb1
{[%clk 0:00:13.6]} 41... Re5 {[%clk 0:00:26.7]} 42. Bd1 {[%clk 0:00:13.8]} 42...
Kg6 {[%clk 0:00:26.1]} 43. Bc2+ {[%clk 0:00:13.9]} 43... Kf7 {[%clk 0:00:20.6]}
44. Rb6 {[%clk 0:00:14.8]} 44... h5 {[%clk 0:00:18.1]} 45. Rh6 {[%clk
0:00:13.3]} 45... h4+ {[%clk 0:00:16.9]} 46. Kg4 {[%clk 0:00:13.7]} 46... Re2
{[%clk 0:00:16.7]} 47. Kxg5 {[%clk 0:00:10.4]} 47... Rxc2 {[%clk 0:00:14.4]} 48.
Rh7+ {[%clk 0:00:10.3]} 1-0

[Event "*** Titled Tuesday Blitz"]
[Site "Chess.com"]
[Date "2021.04.20"]
[Round "11"]
[White "AEMEffi"]
[Black "LifeIsAllAboutChess23"]
[Result "0-1"]
[WhiteElo "2321"]
[BlackElo "2191"]
[TimeControl "180+1"]
[EndTime "12:06:39 PDT"]
[Termination "LifeIsAllAboutChess23 won on time"]

1. d4 {[%clk 0:03:00.9]} 1... Nf6 {[%clk 0:02:58.3]} 2. c4 {[%clk 0:02:59.8]}
2... e5 {[%clk 0:02:58.3]} 3. dxe5 {[%clk 0:02:58.6]} 3... Ng4 {[%clk
0:02:58.3]} 4. Nh3 {[%clk 0:02:55.4]} 4... Nc6 {[%clk 0:02:55.1]} 5. e3 {[%clk
0:02:48.7]} 5... Bb4+ {[%clk 0:02:53.1]} 6. Bd2 {[%clk 0:02:45.5]} 6... Bxd2+
{[%clk 0:02:52.3]} 7. Nxd2 {[%clk 0:02:44.8]} 7... Ngxe5 {[%clk 0:02:53.2]} 8.
Be2 {[%clk 0:02:41.9]} 8... d6 {[%clk 0:02:52]} 9. Nf4 {[%clk 0:02:42.2]} 9...
O-O {[%clk 0:02:50.2]} 10. O-O {[%clk 0:02:42.6]} 10... Re8 {[%clk 0:02:42.9]}
11. a3 {[%clk 0:02:36.7]} 11... Ng6 {[%clk 0:02:41.6]} 12. Nxg6 {[%clk
0:02:31.9]} 12... hxg6 {[%clk 0:02:42.5]} 13. b4 {[%clk 0:02:31.9]} 13... Ne5
{[%clk 0:02:42.1]} 14. Nf3 {[%clk 0:02:24.2]} 14... Nxf3+ {[%clk 0:02:37.1]} 15.
Bxf3 {[%clk 0:02:23.8]} 15... Rb8 {[%clk 0:02:36.6]} 16. Qd4 {[%clk 0:02:17.6]}
16... Qf6 {[%clk 0:02:33.9]} 17. Qxa7 {[%clk 0:02:11.2]} 17... Be6 {[%clk
0:02:32.5]} 18. Rac1 {[%clk 0:02:06.4]} 18... c6 {[%clk 0:02:22.5]} 19. Qd4
{[%clk 0:01:58.9]} 19... Qxd4 {[%clk 0:02:16.8]} 20. exd4 {[%clk 0:01:57.7]}
20... Ra8 {[%clk 0:02:07.2]} 21. Rc3 {[%clk 0:01:54.4]} 21... Bf5 {[%clk
0:02:00.1]} 22. h3 {[%clk 0:01:17.1]} 22... Ra6 {[%clk 0:01:50.2]} 23. g4 {[%clk
0:01:13.9]} 23... Be6 {[%clk 0:01:46.4]} 24. Re1 {[%clk 0:01:11.6]} 24... Rea8
{[%clk 0:01:43.6]} 25. d5 {[%clk 0:01:05.8]} 25... cxd5 {[%clk 0:00:28.9]} 26.
cxd5 {[%clk 0:01:04.2]} 26... Bd7 {[%clk 0:00:21.4]} 27. Ree3 {[%clk 0:00:46.4]}
27... Bb5 {[%clk 0:00:17.6]} 28. g5 {[%clk 0:00:37.9]} 28... Kf8 {[%clk
0:00:14.5]} 29. h4 {[%clk 0:00:37.7]} 29... Bd7 {[%clk 0:00:13.9]} 30. Kg2
{[%clk 0:00:36.7]} 30... Rc8 {[%clk 0:00:13.9]} 31. Kg3 {[%clk 0:00:36.7]} 31...
Rxc3 {[%clk 0:00:13.6]} 32. Rxc3 {[%clk 0:00:36.9]} 32... Ra8 {[%clk 0:00:13.6]}
33. Rc7 {[%clk 0:00:34.6]} 33... Bf5 {[%clk 0:00:13.7]} 34. Rxb7 {[%clk
0:00:30.5]} 34... Rxa3 {[%clk 0:00:14]} 35. Kf4 {[%clk 0:00:31.1]} 35... Rd3
{[%clk 0:00:12.3]} 36. b5 {[%clk 0:00:25.7]} 36... Rd4+ {[%clk 0:00:12.4]} 37.
Ke3 {[%clk 0:00:25.1]} 37... Rxh4 {[%clk 0:00:11.6]} 38. Rb8+ {[%clk 0:00:19.7]}
38... Ke7 {[%clk 0:00:11.3]} 39. Rb7+ {[%clk 0:00:13.2]} 39... Kf8 {[%clk
0:00:11]} 40. Ra7 {[%clk 0:00:11.8]} 40... Rb4 {[%clk 0:00:09.6]} 41. Be2 {[%clk
0:00:10.5]} 41... Rb3+ {[%clk 0:00:07.8]} 42. Kd4 {[%clk 0:00:10.4]} 42... Rb4+
{[%clk 0:00:08]} 43. Bc4 {[%clk 0:00:08.6]} 43... Bg4 {[%clk 0:00:05]} 44. Kc3
{[%clk 0:00:08.5]} 44... Rb1 {[%clk 0:00:05.1]} 45. Ra6 {[%clk 0:00:05.5]} 45...
Rc1+ {[%clk 0:00:02.8]} 46. Kb4 {[%clk 0:00:02.6]} 46... Rb1+ {[%clk 0:00:02.7]}
0-1

[Event "*** Titled Tuesday Blitz"]
[Site "Chess.com"]
[Date "2021.04.20"]
[Round "11"]
[White "IriBu"]
[Black "Margency"]
[Result "0-1"]
[WhiteElo "2562"]
[BlackElo "2707"]
[TimeControl "180+1"]
[EndTime "12:06:43 PDT"]
[Termination "Margency won on time"]

1. e4 {[%clk 0:03:00.9]} 1... c5 {[%clk 0:02:59.8]} 2. Be2 {[%clk 0:03:00.7]}
2... Nc6 {[%clk 0:02:58.7]} 3. f4 {[%clk 0:03:01]} 3... g6 {[%clk 0:02:57.5]} 4.
Nf3 {[%clk 0:03:01.4]} 4... d6 {[%clk 0:02:57.1]} 5. O-O {[%clk 0:03:01.9]} 5...
Bg7 {[%clk 0:02:57.1]} 6. c3 {[%clk 0:03:02]} 6... Nf6 {[%clk 0:02:55.5]} 7. d3
{[%clk 0:03:02.1]} 7... Bg4 {[%clk 0:02:48.7]} 8. Be3 {[%clk 0:03:00.8]} 8...
O-O {[%clk 0:02:48.3]} 9. Nbd2 {[%clk 0:02:58.9]} 9... Rb8 {[%clk 0:02:45.6]}
10. Kh1 {[%clk 0:02:54.7]} 10... b5 {[%clk 0:02:43.9]} 11. a3 {[%clk 0:02:55]}
11... a5 {[%clk 0:02:43.7]} 12. h3 {[%clk 0:02:51.9]} 12... Bxf3 {[%clk
0:02:41.2]} 13. Bxf3 {[%clk 0:02:51.1]} 13... Qc7 {[%clk 0:02:40.9]} 14. d4
{[%clk 0:02:49]} 14... cxd4 {[%clk 0:02:23.3]} 15. cxd4 {[%clk 0:02:49.9]} 15...
e5 {[%clk 0:02:23.3]} 16. fxe5 {[%clk 0:02:32.5]} 16... dxe5 {[%clk 0:02:23.1]}
17. d5 {[%clk 0:02:32.8]} 17... Nd4 {[%clk 0:02:22.7]} 18. Rc1 {[%clk
0:02:31.8]} 18... Qd6 {[%clk 0:02:08]} 19. Nb3 {[%clk 0:02:30.3]} 19... Nxb3
{[%clk 0:01:51.5]} 20. Qxb3 {[%clk 0:02:29.8]} 20... a4 {[%clk 0:01:51]} 21. Qb4
{[%clk 0:02:22.2]} 21... Qxb4 {[%clk 0:01:50.1]} 22. axb4 {[%clk 0:02:23.1]}
22... Rfc8 {[%clk 0:01:46.5]} 23. Rc6 {[%clk 0:01:55.8]} 23... Ne8 {[%clk
0:01:35.8]} 24. Rfc1 {[%clk 0:01:51.1]} 24... Rd8 {[%clk 0:01:35.9]} 25. Bb6
{[%clk 0:01:44.8]} 25... Rd6 {[%clk 0:01:26.6]} 26. Rxd6 {[%clk 0:01:29.9]}
26... Nxd6 {[%clk 0:01:26.6]} 27. Bc7 {[%clk 0:01:28.8]} 27... Rc8 {[%clk
0:01:25.1]} 28. Rc6 {[%clk 0:01:29]} 28... Bf8 {[%clk 0:01:14.2]} 29. Bg4 {[%clk
0:01:08]} 29... f5 {[%clk 0:01:10.3]} 30. exf5 {[%clk 0:01:06]} 30... gxf5
{[%clk 0:01:09.6]} 31. Be2 {[%clk 0:00:51]} 31... e4 {[%clk 0:00:58.3]} 32. Kg1
{[%clk 0:00:45]} 32... Nc4 {[%clk 0:00:53.8]} 33. Bxc4 {[%clk 0:00:39.7]} 33...
bxc4 {[%clk 0:00:53.6]} 34. b5 {[%clk 0:00:38.7]} 34... Bg7 {[%clk 0:00:44.7]}
35. b6 {[%clk 0:00:36.3]} 35... Bxb2 {[%clk 0:00:44.6]} 36. b7 {[%clk
0:00:36.7]} 36... Rf8 {[%clk 0:00:41.6]} 37. b8=Q {[%clk 0:00:27.5]} 37... Rxb8
{[%clk 0:00:41.3]} 38. Bxb8 {[%clk 0:00:28.4]} 38... a3 {[%clk 0:00:39.3]} 39.
Rxc4 {[%clk 0:00:18.8]} 39... a2 {[%clk 0:00:39.3]} 40. Ra4 {[%clk 0:00:18.7]}
40... a1=Q+ {[%clk 0:00:39.1]} 41. Rxa1 {[%clk 0:00:19]} 41... Bxa1 {[%clk
0:00:39.8]} 42. d6 {[%clk 0:00:19.4]} 42... Kf7 {[%clk 0:00:40]} 43. Kf2 {[%clk
0:00:15.4]} 43... Ke6 {[%clk 0:00:39.5]} 44. d7 {[%clk 0:00:13.3]} 44... Kxd7
{[%clk 0:00:39.3]} 45. g4 {[%clk 0:00:13.9]} 45... Ke6 {[%clk 0:00:37.1]} 46.
Ke3 {[%clk 0:00:12.6]} 46... Bb2 {[%clk 0:00:31.3]} 47. gxf5+ {[%clk 0:00:12.8]}
47... Kxf5 {[%clk 0:00:31.3]} 48. Bc7 {[%clk 0:00:11.3]} 48... Bc1+ {[%clk
0:00:29.8]} 49. Kd4 {[%clk 0:00:11]} 49... Bf4 {[%clk 0:00:28.3]} 50. Ba5 {[%clk
0:00:08.7]} 50... Bb8 {[%clk 0:00:27.6]} 51. Bb6 {[%clk 0:00:07.9]} 51... Kf4
{[%clk 0:00:26.7]} 52. Ba5 {[%clk 0:00:07.8]} 52... Kf3 {[%clk 0:00:27]} 53. Bd2
{[%clk 0:00:07.1]} 53... h5 {[%clk 0:00:19.5]} 54. Bg5 {[%clk 0:00:04.2]} 54...
Bf4 {[%clk 0:00:18.6]} 55. Bh4 {[%clk 0:00:02.7]} 55... e3 {[%clk 0:00:18.5]}
56. Kd3 {[%clk 0:00:02.8]} 56... e2 {[%clk 0:00:18.4]} 0-1

[Event "*** Titled Tuesday Blitz"]
[Site "Chess.com"]
[Date "2021.04.20"]
[Round "11"]
[White "Mikasinski"]
[Black "ckgchess"]
[Result "0-1"]
[WhiteElo "2537"]
[BlackElo "2705"]
[TimeControl "180+1"]
[EndTime "12:06:44 PDT"]
[Termination "ckgchess won by resignation"]

1. e4 {[%clk 0:03:00.9]} 1... c5 {[%clk 0:02:56.3]} 2. Nf3 {[%clk 0:03:01.4]}
2... d6 {[%clk 0:02:55.9]} 3. d4 {[%clk 0:03:02.1]} 3... cxd4 {[%clk 0:02:56.1]}
4. Nxd4 {[%clk 0:03:02.9]} 4... Nf6 {[%clk 0:02:56.4]} 5. Nc3 {[%clk 0:03:03.6]}
5... g6 {[%clk 0:02:56.3]} 6. Be3 {[%clk 0:03:03.5]} 6... Bg7 {[%clk 0:02:55.3]}
7. f3 {[%clk 0:03:04]} 7... a6 {[%clk 0:02:55.2]} 8. Qd2 {[%clk 0:03:04.5]} 8...
h5 {[%clk 0:02:55]} 9. Bd3 {[%clk 0:02:49.8]} 9... b5 {[%clk 0:02:52]} 10. a4
{[%clk 0:02:42.2]} 10... b4 {[%clk 0:02:49.7]} 11. Nd5 {[%clk 0:02:42.6]} 11...
Nxd5 {[%clk 0:02:49]} 12. exd5 {[%clk 0:02:43.3]} 12... Bb7 {[%clk 0:02:32.5]}
13. Bc4 {[%clk 0:02:38.1]} 13... Qa5 {[%clk 0:02:00.7]} 14. O-O {[%clk
0:02:32.3]} 14... Nd7 {[%clk 0:01:57]} 15. Rfe1 {[%clk 0:02:22.5]} 15... Rc8
{[%clk 0:01:52.5]} 16. Nc6 {[%clk 0:02:15.4]} 16... Bxc6 {[%clk 0:01:44.1]} 17.
dxc6 {[%clk 0:02:15.4]} 17... Ne5 {[%clk 0:01:43.7]} 18. Bb3 {[%clk 0:02:09]}
18... O-O {[%clk 0:01:38.5]} 19. Bg5 {[%clk 0:02:00.5]} 19... Rfe8 {[%clk
0:01:23.1]} 20. Rad1 {[%clk 0:01:56.6]} 20... Nxc6 {[%clk 0:01:18.9]} 21. Qf4
{[%clk 0:01:51.6]} 21... Qf5 {[%clk 0:01:09.9]} 22. Qxf5 {[%clk 0:01:43.9]}
22... gxf5 {[%clk 0:01:10.8]} 23. Bd5 {[%clk 0:01:38.9]} 23... e6 {[%clk
0:01:06.3]} 24. Bc4 {[%clk 0:01:34.3]} 24... Nb8 {[%clk 0:01:01.6]} 25. b3
{[%clk 0:01:32]} 25... d5 {[%clk 0:01:00.9]} 26. Bd3 {[%clk 0:01:32.2]} 26...
Bf8 {[%clk 0:00:46.5]} 27. Bf4 {[%clk 0:01:27.4]} 27... a5 {[%clk 0:00:43.7]}
28. Bb5 {[%clk 0:01:07.5]} 28... Red8 {[%clk 0:00:43.3]} 29. Bg5 {[%clk
0:01:07.4]} 29... Rd6 {[%clk 0:00:41.5]} 30. Bf4 {[%clk 0:01:04.2]} 30... Rb6
{[%clk 0:00:41.7]} 31. Re2 {[%clk 0:01:01.1]} 31... Bc5+ {[%clk 0:00:40.7]} 32.
Kh1 {[%clk 0:00:59.1]} 32... Nc6 {[%clk 0:00:41]} 33. Red2 {[%clk 0:00:54.7]}
33... Ne7 {[%clk 0:00:37.9]} 34. Be5 {[%clk 0:00:49.6]} 34... Ng6 {[%clk
0:00:37.5]} 35. Bb2 {[%clk 0:00:47.7]} 35... Bf8 {[%clk 0:00:37.5]} 36. Bd4
{[%clk 0:00:46.6]} 36... Bc5 {[%clk 0:00:37.4]} 37. Bb2 {[%clk 0:00:46.5]} 37...
Bf8 {[%clk 0:00:38]} 38. Bd4 {[%clk 0:00:46.5]} 38... Rbb8 {[%clk 0:00:38.7]}
39. Ba7 {[%clk 0:00:45]} 39... Ra8 {[%clk 0:00:39]} 40. Bb6 {[%clk 0:00:45.3]}
40... Bc5 {[%clk 0:00:37.8]} 41. Bxc5 {[%clk 0:00:42.3]} 41... Rxc5 {[%clk
0:00:38.7]} 42. g3 {[%clk 0:00:38.7]} 42... Rac8 {[%clk 0:00:37.7]} 43. Bd3
{[%clk 0:00:36.1]} 43... Ne5 {[%clk 0:00:37.3]} 44. f4 {[%clk 0:00:32.1]} 44...
Nxd3 {[%clk 0:00:37.1]} 45. cxd3 {[%clk 0:00:33]} 45... Rc3 {[%clk 0:00:37.4]}
46. Rb2 {[%clk 0:00:33]} 46... Rc1 {[%clk 0:00:37.3]} 47. Rxc1 {[%clk
0:00:28.5]} 47... Rxc1+ {[%clk 0:00:38.2]} 48. Kg2 {[%clk 0:00:29.1]} 48... Rc3
{[%clk 0:00:39]} 49. Kh3 {[%clk 0:00:27.4]} 49... Kg7 {[%clk 0:00:37.7]} 50. Kh4
{[%clk 0:00:28]} 50... Kg6 {[%clk 0:00:37.6]} 51. d4 {[%clk 0:00:25.3]} 51...
Kh6 {[%clk 0:00:26.8]} 52. h3 {[%clk 0:00:23.9]} 52... Kg6 {[%clk 0:00:26.7]}
53. Rb1 {[%clk 0:00:24.2]} 53... Rd3 {[%clk 0:00:21.9]} 54. Rc1 {[%clk
0:00:24.3]} 54... Rxb3 {[%clk 0:00:21.1]} 55. Rc5 {[%clk 0:00:20.4]} 55... Rd3
{[%clk 0:00:21.4]} 56. Rxa5 {[%clk 0:00:20.9]} 56... Rxd4 {[%clk 0:00:22]} 57.
Rb5 {[%clk 0:00:21.4]} 57... b3 {[%clk 0:00:20.6]} 58. a5 {[%clk 0:00:21.1]}
58... Ra4 {[%clk 0:00:21.2]} 59. Rxb3 {[%clk 0:00:21.5]} 59... Rxa5 {[%clk
0:00:21.2]} 60. Rb8 {[%clk 0:00:22.2]} 60... d4 {[%clk 0:00:19.8]} 61. Rg8+
{[%clk 0:00:22.4]} 61... Kf6 {[%clk 0:00:18.4]} 62. Rd8 {[%clk 0:00:23.3]} 62...
Rd5 {[%clk 0:00:18.3]} 63. Ra8 {[%clk 0:00:21]} 63... d3 {[%clk 0:00:18.5]} 64.
Ra1 {[%clk 0:00:21.6]} 64... d2 {[%clk 0:00:19.4]} 65. Rd1 {[%clk 0:00:21.8]}
65... Kg6 {[%clk 0:00:20]} 0-1